{"text_format":"3","workbook":"xlsx","n_sheets":2,"sheets":["Sledování projektu","Nastavení"],"not_rendered":{"defined_names":6},"read":"whole","date_system":"1900"}

{"sheet":"Sledování projektu","index":0,"n_rows":13,"n_cols":15,"rows_kept":13}
[null,"Sledování projektu"]
[null,null,"Procento nad/pod pro přidání příznaku: ",{"v":0.25,"d":"25%"}]
[]
[null,"Projekt","Kategorie","Přiřazeno komu","Předpokládané\nzahájení","Předpokládané \ndokončení","Předpokládaná práce \n(v hodinách)","Předpokládaná doba trvání (ve dnech)","Skutečné \nzahájení","Skutečné\ndokončení","Ikona příznaku pro větší nebo menší objem skutečné práce (v hodinách)","Skutečná práce\n(v hodinách)","Ikona příznaku pro delší nebo kratší skutečnou dobu trvání (ve dnech)","Skutečná doba trvání (ve dnech)","Poznámky"]
[null,"Projekt 1","Kategorie 1","Zaměstnanec 1",{"$f":"TODAY()-65","v":"2016-08-17"},{"$f":"TODAY()-5","v":"2016-10-16"},210,{"$f":"IF(COUNTA('Sledování projektu'!$E5,'Sledování projektu'!$F5)<>2,\"\",DAYS360('Sledování projektu'!$E5,'Sledování projektu'!$F5,FALSE))","v":59},{"$f":"TODAY()-65","v":"2016-08-17"},{"$f":"TODAY()","v":"2016-10-21"},{"$f":"IFERROR(IF(Sledování_projektu[Skutečná práce\n(v hodinách)]=0,\"\",IF(ABS((Sledování_projektu[[#This Row],[Skutečná práce\n(v hodinách)]]-Sledování_projektu[[#This Row],[Předpokládaná práce \n(v hodinách)]])/Sledování_projektu[[#This Row],[Předpokládaná práce \n(v hodinách)]])>ProcentoProPříznak,1,0)),\"\")","v":1},300,{"$f":"IFERROR(IF(Sledování_projektu[Skutečná doba trvání (ve dnech)]=0,\"\",IF(ABS((Sledování_projektu[[#This Row],[Skutečná doba trvání (ve dnech)]]-Sledování_projektu[[#This Row],[Předpokládaná doba trvání (ve dnech)]])/Sledování_projektu[[#This Row],[Předpokládaná doba trvání (ve dnech)]])>ProcentoProPříznak,1,0)),\"\")","v":0},{"$f":"IF(COUNTA('Sledování projektu'!$I5,'Sledování projektu'!$J5)<>2,\"\",DAYS360('Sledování projektu'!$I5,'Sledování projektu'!$J5,FALSE))","v":64}]
[null,"Projekt 2","Kategorie 2","Zaměstnanec 4",{"$f":"TODAY()-41","v":"2016-09-10"},{"$f":"TODAY()-10","v":"2016-10-11"},400,{"$f":"IF(COUNTA('Sledování projektu'!$E6,'Sledování projektu'!$F6)<>2,\"\",DAYS360('Sledování projektu'!$E6,'Sledování projektu'!$F6,FALSE))","v":31},{"$f":"TODAY()-41","v":"2016-09-10"},{"$f":"TODAY()-7","v":"2016-10-14"},{"$f":"IFERROR(IF(Sledování_projektu[Skutečná práce\n(v hodinách)]=0,\"\",IF(ABS((Sledování_projektu[[#This Row],[Skutečná práce\n(v hodinách)]]-Sledování_projektu[[#This Row],[Předpokládaná práce \n(v hodinách)]])/Sledování_projektu[[#This Row],[Předpokládaná práce \n(v hodinách)]])>ProcentoProPříznak,1,0)),\"\")","v":0},390,{"$f":"IFERROR(IF(Sledování_projektu[Skutečná doba trvání (ve dnech)]=0,\"\",IF(ABS((Sledování_projektu[[#This Row],[Skutečná doba trvání (ve dnech)]]-Sledování_projektu[[#This Row],[Předpokládaná doba trvání (ve dnech)]])/Sledování_projektu[[#This Row],[Předpokládaná doba trvání (ve dnech)]])>ProcentoProPříznak,1,0)),\"\")","v":0},{"$f":"IF(COUNTA('Sledování projektu'!$I6,'Sledování projektu'!$J6)<>2,\"\",DAYS360('Sledování projektu'!$I6,'Sledování projektu'!$J6,FALSE))","v":34}]
[null,"Projekt 3","Kategorie 1","Zaměstnanec 2",{"$f":"TODAY()-100","v":"2016-07-13"},{"$f":"TODAY()-40","v":"2016-09-11"},500,{"$f":"IF(COUNTA('Sledování projektu'!$E7,'Sledování projektu'!$F7)<>2,\"\",DAYS360('Sledování projektu'!$E7,'Sledování projektu'!$F7,FALSE))","v":58},{"$f":"TODAY()-100","v":"2016-07-13"},{"$f":"TODAY()-27","v":"2016-09-24"},{"$f":"IFERROR(IF(Sledování_projektu[Skutečná práce\n(v hodinách)]=0,\"\",IF(ABS((Sledování_projektu[[#This Row],[Skutečná práce\n(v hodinách)]]-Sledování_projektu[[#This Row],[Předpokládaná práce \n(v hodinách)]])/Sledování_projektu[[#This Row],[Předpokládaná práce \n(v hodinách)]])>ProcentoProPříznak,1,0)),\"\")","v":0},500,{"$f":"IFERROR(IF(Sledování_projektu[Skutečná doba trvání (ve dnech)]=0,\"\",IF(ABS((Sledování_projektu[[#This Row],[Skutečná doba trvání (ve dnech)]]-Sledování_projektu[[#This Row],[Předpokládaná doba trvání (ve dnech)]])/Sledování_projektu[[#This Row],[Předpokládaná doba trvání (ve dnech)]])>ProcentoProPříznak,1,0)),\"\")","v":0},{"$f":"IF(COUNTA('Sledování projektu'!$I7,'Sledování projektu'!$J7)<>2,\"\",DAYS360('Sledování projektu'!$I7,'Sledování projektu'!$J7,FALSE))","v":71}]
[null,"Projekt 4","Kategorie 2","Zaměstnanec 3",{"$f":"TODAY()-90","v":"2016-07-23"},{"$f":"TODAY()-80","v":"2016-08-02"},250,{"$f":"IF(COUNTA('Sledování projektu'!$E8,'Sledování projektu'!$F8)<>2,\"\",DAYS360('Sledování projektu'!$E8,'Sledování projektu'!$F8,FALSE))","v":9},{"$f":"TODAY()-90","v":"2016-07-23"},{"$f":"TODAY()-71","v":"2016-08-11"},{"$f":"IFERROR(IF(Sledování_projektu[Skutečná práce\n(v hodinách)]=0,\"\",IF(ABS((Sledování_projektu[[#This Row],[Skutečná práce\n(v hodinách)]]-Sledování_projektu[[#This Row],[Předpokládaná práce \n(v hodinách)]])/Sledování_projektu[[#This Row],[Předpokládaná práce \n(v hodinách)]])>ProcentoProPříznak,1,0)),\"\")","v":0},276,{"$f":"IFERROR(IF(Sledování_projektu[Skutečná doba trvání (ve dnech)]=0,\"\",IF(ABS((Sledování_projektu[[#This Row],[Skutečná doba trvání (ve dnech)]]-Sledování_projektu[[#This Row],[Předpokládaná doba trvání (ve dnech)]])/Sledování_projektu[[#This Row],[Předpokládaná doba trvání (ve dnech)]])>ProcentoProPříznak,1,0)),\"\")","v":1},{"$f":"IF(COUNTA('Sledování projektu'!$I8,'Sledování projektu'!$J8)<>2,\"\",DAYS360('Sledování projektu'!$I8,'Sledování projektu'!$J8,FALSE))","v":18}]
[null,"Projekt 5","Kategorie 3","Zaměstnanec 2",{"$f":"TODAY()-90","v":"2016-07-23"},{"$f":"TODAY()-50","v":"2016-09-01"},300,{"$f":"IF(COUNTA('Sledování projektu'!$E9,'Sledování projektu'!$F9)<>2,\"\",DAYS360('Sledování projektu'!$E9,'Sledování projektu'!$F9,FALSE))","v":38},{"$f":"TODAY()-90","v":"2016-07-23"},{"$f":"TODAY()-44","v":"2016-09-07"},{"$f":"IFERROR(IF(Sledování_projektu[Skutečná práce\n(v hodinách)]=0,\"\",IF(ABS((Sledování_projektu[[#This Row],[Skutečná práce\n(v hodinách)]]-Sledování_projektu[[#This Row],[Předpokládaná práce \n(v hodinách)]])/Sledování_projektu[[#This Row],[Předpokládaná práce \n(v hodinách)]])>ProcentoProPříznak,1,0)),\"\")","v":0},310,{"$f":"IFERROR(IF(Sledování_projektu[Skutečná doba trvání (ve dnech)]=0,\"\",IF(ABS((Sledování_projektu[[#This Row],[Skutečná doba trvání (ve dnech)]]-Sledování_projektu[[#This Row],[Předpokládaná doba trvání (ve dnech)]])/Sledování_projektu[[#This Row],[Předpokládaná doba trvání (ve dnech)]])>ProcentoProPříznak,1,0)),\"\")","v":0},{"$f":"IF(COUNTA('Sledování projektu'!$I9,'Sledování projektu'!$J9)<>2,\"\",DAYS360('Sledování projektu'!$I9,'Sledování projektu'!$J9,FALSE))","v":44}]
[null,"Projekt 6","Kategorie 4","Zaměstnanec 4",{"$f":"TODAY()-60","v":"2016-08-22"},{"$f":"TODAY()-50","v":"2016-09-01"},500,{"$f":"IF(COUNTA('Sledování projektu'!$E10,'Sledování projektu'!$F10)<>2,\"\",DAYS360('Sledování projektu'!$E10,'Sledování projektu'!$F10,FALSE))","v":9},{"$f":"TODAY()-60","v":"2016-08-22"},{"$f":"TODAY()-45","v":"2016-09-06"},{"$f":"IFERROR(IF(Sledování_projektu[Skutečná práce\n(v hodinách)]=0,\"\",IF(ABS((Sledování_projektu[[#This Row],[Skutečná práce\n(v hodinách)]]-Sledování_projektu[[#This Row],[Předpokládaná práce \n(v hodinách)]])/Sledování_projektu[[#This Row],[Předpokládaná práce \n(v hodinách)]])>ProcentoProPříznak,1,0)),\"\")","v":0},510,{"$f":"IFERROR(IF(Sledování_projektu[Skutečná doba trvání (ve dnech)]=0,\"\",IF(ABS((Sledování_projektu[[#This Row],[Skutečná doba trvání (ve dnech)]]-Sledování_projektu[[#This Row],[Předpokládaná doba trvání (ve dnech)]])/Sledování_projektu[[#This Row],[Předpokládaná doba trvání (ve dnech)]])>ProcentoProPříznak,1,0)),\"\")","v":1},{"$f":"IF(COUNTA('Sledování projektu'!$I10,'Sledování projektu'!$J10)<>2,\"\",DAYS360('Sledování projektu'!$I10,'Sledování projektu'!$J10,FALSE))","v":14}]
[null,"Projekt 7","Kategorie 5","Zaměstnanec 1",{"$f":"TODAY()-44","v":"2016-09-07"},{"$f":"TODAY()-20","v":"2016-10-01"},750,{"$f":"IF(COUNTA('Sledování projektu'!$E11,'Sledování projektu'!$F11)<>2,\"\",DAYS360('Sledování projektu'!$E11,'Sledování projektu'!$F11,FALSE))","v":24},{"$f":"TODAY()-44","v":"2016-09-07"},{"$f":"TODAY()-15","v":"2016-10-06"},{"$f":"IFERROR(IF(Sledování_projektu[Skutečná práce\n(v hodinách)]=0,\"\",IF(ABS((Sledování_projektu[[#This Row],[Skutečná práce\n(v hodinách)]]-Sledování_projektu[[#This Row],[Předpokládaná práce \n(v hodinách)]])/Sledování_projektu[[#This Row],[Předpokládaná práce \n(v hodinách)]])>ProcentoProPříznak,1,0)),\"\")","v":0},790,{"$f":"IFERROR(IF(Sledování_projektu[Skutečná doba trvání (ve dnech)]=0,\"\",IF(ABS((Sledování_projektu[[#This Row],[Skutečná doba trvání (ve dnech)]]-Sledování_projektu[[#This Row],[Předpokládaná doba trvání (ve dnech)]])/Sledování_projektu[[#This Row],[Předpokládaná doba trvání (ve dnech)]])>ProcentoProPříznak,1,0)),\"\")","v":0},{"$f":"IF(COUNTA('Sledování projektu'!$I11,'Sledování projektu'!$J11)<>2,\"\",DAYS360('Sledování projektu'!$I11,'Sledování projektu'!$J11,FALSE))","v":29}]
[null,"Projekt 8","Kategorie 2","Zaměstnanec 1",{"$f":"TODAY()-39","v":"2016-09-12"},{"$f":"TODAY()","v":"2016-10-21"},450,{"$f":"IF(COUNTA('Sledování projektu'!$E12,'Sledování projektu'!$F12)<>2,\"\",DAYS360('Sledování projektu'!$E12,'Sledování projektu'!$F12,FALSE))","v":39},{"$f":"TODAY()-45","v":"2016-09-06"},{"$f":"TODAY()-5","v":"2016-10-16"},{"$f":"IFERROR(IF(Sledování_projektu[Skutečná práce\n(v hodinách)]=0,\"\",IF(ABS((Sledování_projektu[[#This Row],[Skutečná práce\n(v hodinách)]]-Sledování_projektu[[#This Row],[Předpokládaná práce \n(v hodinách)]])/Sledování_projektu[[#This Row],[Předpokládaná práce \n(v hodinách)]])>ProcentoProPříznak,1,0)),\"\")","v":0},430,{"$f":"IFERROR(IF(Sledování_projektu[Skutečná doba trvání (ve dnech)]=0,\"\",IF(ABS((Sledování_projektu[[#This Row],[Skutečná doba trvání (ve dnech)]]-Sledování_projektu[[#This Row],[Předpokládaná doba trvání (ve dnech)]])/Sledování_projektu[[#This Row],[Předpokládaná doba trvání (ve dnech)]])>ProcentoProPříznak,1,0)),\"\")","v":0},{"$f":"IF(COUNTA('Sledování projektu'!$I12,'Sledování projektu'!$J12)<>2,\"\",DAYS360('Sledování projektu'!$I12,'Sledování projektu'!$J12,FALSE))","v":40}]
[null,"Projekt 9","Kategorie 4","Zaměstnanec 1","2016-02-05","2016-06-09",250,{"$f":"IF(COUNTA('Sledování projektu'!$E13,'Sledování projektu'!$F13)<>2,\"\",DAYS360('Sledování projektu'!$E13,'Sledování projektu'!$F13,FALSE))","v":124},"2016-03-05","2016-05-05",{"$f":"IFERROR(IF(Sledování_projektu[Skutečná práce\n(v hodinách)]=0,\"\",IF(ABS((Sledování_projektu[[#This Row],[Skutečná práce\n(v hodinách)]]-Sledování_projektu[[#This Row],[Předpokládaná práce \n(v hodinách)]])/Sledování_projektu[[#This Row],[Předpokládaná práce \n(v hodinách)]])>ProcentoProPříznak,1,0)),\"\")","v":0},200,{"$f":"IFERROR(IF(Sledování_projektu[Skutečná doba trvání (ve dnech)]=0,\"\",IF(ABS((Sledování_projektu[[#This Row],[Skutečná doba trvání (ve dnech)]]-Sledování_projektu[[#This Row],[Předpokládaná doba trvání (ve dnech)]])/Sledování_projektu[[#This Row],[Předpokládaná doba trvání (ve dnech)]])>ProcentoProPříznak,1,0)),\"\")","v":1},{"$f":"IF(COUNTA('Sledování projektu'!$I13,'Sledování projektu'!$J13)<>2,\"\",DAYS360('Sledování projektu'!$I13,'Sledování projektu'!$J13,FALSE))","v":60}]

{"sheet":"Nastavení","index":1,"n_rows":10,"n_cols":3,"rows_kept":10}
[null,"Nastavení"]
[]
[]
[null,"Název kategorie","Jméno zaměstnance"]
[null,"Kategorie 1","Zaměstnanec 1"]
[null,"Kategorie 2","Zaměstnanec 2"]
[null,"Kategorie 3","Zaměstnanec 3"]
[null,"Kategorie 4","Zaměstnanec 4"]
[null,"Kategorie 5","Zaměstnanec 5"]
[null,"Kategorie 6","Zaměstnanec 6"]